[Event "Swiss Championship 2024"]
[Site "Flims"]
[Date "2024.07.18"]
[Round "6.5"]
[White "Wyss, Jonas"]
[Black "Kurmann, Oliver"]
[Result "1/2-1/2"]
[ECO "B33"]
[WhiteElo "2291"]
[BlackElo "2428"]
[Annotator "RC"]
[PlyCount "131"]
[EventDate "2024.07.10"]
[EventType "tourn"]
[EventCountry "SUI"]
[SourceTitle "playchess.com"]
[Source "ChessBase"]
[SourceQuality "1"]
[TimeControl "40/5400+30:1800+30"]

1. e4 {[%emt 0:00:03]} c5 {[%emt 0:00:09]} 2. Nf3 {[%emt 0:00:17]} e6 {[%emt 0:00:12]} 3. d4 {[%emt 0:00:12]} cxd4 {[%emt 0:00:06]} 4. Nxd4 {[%emt 0:00:07]} Nc6 {[%emt 0:00:42]} 5. Nc3 {[%emt 0:00:18]} Nf6 {[%emt 0:00:08]} 6. Ndb5 {[%emt 0:00:36]} d6 {[%emt 0:00:08]} 7. Bf4 {[%emt 0:00:19]} e5 {[%emt 0:00:08]} 8. Bg5 {[%emt 0:00:08]} a6 {[%emt 0:00:06]} 9. Na3 {[%emt 0:00:36]} b5 {[%emt 0:00:08]} 10. Nab1 {[%emt 0:01:34]} Be7 {[%emt 0:02:37]} 11. Bxf6 {[%emt 0:00:27]} Bxf6 {[%emt 0:00:01]} 12. a4 {[%emt 0:00:32]} b4 {[%emt 0:00:16]} 13. Nd5 {[%emt 0:00:15]} Bg5 {[%emt 0:15:27]} 14. c3 {[%emt 0:12:51]} a5 {[%emt 0:15:02]} 15. Bb5 {[%emt 0:11:42]} Bd7 {[%emt 0:02:59]} 16. cxb4 {[%emt 0:07:39]} axb4 {[%emt 0:00:18]} 17. O-O {[%emt 0:03:09]} Rb8 {[%emt 0:01:21]} 18. Nd2 {[%emt 0:03:20]} Bxd2 {[%emt 0:01:59]} 19. Qxd2 {[%emt 0:00:08]} Nd4 {[%emt 0:00:13]} 20. Bxd7+ {[%emt 0:04:56]} Qxd7 {[%emt 0:00:01]} 21. Qg5 {[%emt 0:01:13]} f6 {[%emt 0:01:48]} 22. Qh5+ {[%emt 0:03:02]} Qf7 {[%emt 0:00:12]} 23. Qxf7+ {[%emt 0:10:58]} Kxf7 {[%emt 0:00:01]} 24. a5 {[%emt 0:00:24]} Ra8 {[%emt 0:23:26]} 25. Nxb4 {[%emt 0:06:11]} Rhb8 {[%emt 0:00:14]} 26. Ra4 {[%emt 0:02:23]} Nb3 {[%emt 0:01:25]} 27. Nd5 {[%emt 0:03:33]} Rxa5 {[%emt 0:04:18]} 28. Rxa5 {[%emt 0:00:38]} Nxa5 {[%emt 0:00:02]} 29. b4 {[%emt 0:00:32]} Nc6 {[%emt 0:00:21]} 30. Rb1 {[%emt 0:00:16]} Nd4 {[%emt 0:00:08]} 31. f3 {[%emt 0:02:50]} f5 {[%emt 0:05:39]} 32. Kf2 {[%emt 0:01:34]} fxe4 {[%emt 0:24:38]} 33. fxe4 {[%emt 0:00:09]} Nb5 {[%emt 0:00:29]} 34. Ra1 {[%emt 0:11:41]} Nd4 {[%emt 0:00:03]} 35. Ra2 {[%emt 0:03:18]} Nc6 {[%emt 0:02:32]} 36. Rb2 {[%emt 0:00:19]} Nd4 {[%emt 0:00:30]} 37. Ke3 {[%emt 0:01:08]} Nb5 {[%emt 0:00:26]} 38. Ra2 {[%emt 0:01:05]} h5 {[%emt 0:00:40]} 39. Kd3 {[%emt 0:01:47]} Nd4 {[%emt 0:00:30]} 40. Ra7+ {[%emt 0:01:31]} Kg6 {[%emt 0:00:34]} 41. Ra6 {[%emt 0:11:41]} Rf8 {[%emt 0:00:56]} 42. Rxd6+ {[%emt 0:02:10]} Kh7 {[%emt 0:00:01]} 43. Ne3 {[%emt 0:03:44]} Rb8 {[%emt 0:02:44]} 44. Kc4 {[%emt 0:05:21]} Rc8+ {[%emt 0:00:04]} 45. Kd5 {[%emt 0:00:32]} Nc2 {[%emt 0:00:24]} 46. Nxc2 {[%emt 0:03:17]} Rxc2 {[%emt 0:00:01]} 47. Kxe5 {[%emt 0:01:15]} Rxg2 {[%emt 0:00:10]} 48. h4 {[%emt 0:00:11]} g5 {[%emt 0:03:49]} 49. hxg5 {[%emt 0:12:22]} Rxg5+ {[%emt 0:00:01]} 50. Kf4 {[%emt 0:00:14]} Rb5 {[%emt 0:00:57]} 51. Rd5 {[%emt 0:00:56]} Rxb4 {[%emt 0:00:11]} 52. Rxh5+ {[%emt 0:00:15]} Kg6 {[%emt 0:00:09]} 53. Rf5 {[%emt 0:00:07]} Rb6 {[%emt 0:13:32]} 54. Ke5 {[%emt 0:00:35]} Rb5+ {[%emt 0:00:52]} 55. Ke6 {[%emt 0:00:08]} Rb6+ {[%emt 0:00:05]} 56. Ke7 {[%emt 0:00:37]} Rb7+ {[%emt 0:00:21]} 57. Kd6 {[%emt 0:00:12]} Rb4 {[%emt 0:00:15]} 58. Re5 {[%emt 0:01:06]} Kf6 {[%emt 0:02:41]} 59. Re6+ {[%emt 0:00:14]} Kf7 {[%emt 0:00:05]} 60. Re7+ {[%emt 0:00:06]} Kf8 {[%emt 0:00:12]} 61. Re5 {[%emt 0:00:30]} Kf7 {[%emt 0:04:03]} 62. Rf5+ {[%emt 0:00:26]} Kg6 {[%emt 0:01:04]} 63. Kd5 {[%emt 0:01:34]} Rb5+ {[%emt 0:00:12]} 64. Ke6 {[%emt 0:00:18]} Rb6+ {[%emt 0:00:07]} 65. Kd7 {[%emt 0:00:16]} Rb7+ {[%emt 0:02:46]} 66. Ke6 {[%emt 0:00:57]} 1/2-1/2

[Event "Swiss Championship 2024"]
[Site "Flims"]
[Date "2024.07.19"]
[Round "7.1"]
[White "Kurmann, Oliver"]
[Black "Bogner, Sebastian"]
[Result "0-1"]
[ECO "B67"]
[WhiteElo "2428"]
[BlackElo "2547"]
[Annotator "RC"]
[PlyCount "104"]
[EventDate "2024.07.10"]
[EventType "tourn"]
[EventCountry "SUI"]
[SourceTitle "playchess.com"]
[Source "ChessBase"]
[SourceQuality "1"]
[TimeControl "40/5400+30:1800+30"]

1. e4 {[%emt 0:00:03]} c5 {[%emt 0:00:05]} 2. Nf3 {[%emt 0:00:09]} d6 {[%emt 0:00:05]} 3. Nc3 {[%emt 0:00:16]} Nc6 {[%emt 0:01:22]} 4. d4 {[%emt 0:00:22]} cxd4 {[%emt 0:00:04]} 5. Nxd4 {[%emt 0:00:02]} Nf6 {[%emt 0:00:05]} 6. Bg5 {[%emt 0:00:56]} e6 {[%emt 0:00:31]} 7. Qd2 {[%emt 0:01:05]} a6 {[%emt 0:00:27]} 8. O-O-O {[%emt 0:00:17]} Bd7 {[%emt 0:00:21]} 9. f3 {[%emt 0:00:22]} Nxd4 {[%emt 0:04:50]} 10. Qxd4 {[%emt 0:00:02]} h6 {[%emt 0:00:18]} 11. Be3 {[%emt 0:00:40]} Bc6 {[%emt 0:00:34]} 12. Kb1 {[%emt 0:04:37]} d5 {[%emt 0:06:43]} 13. e5 {[%emt 0:03:19]} Nd7 {[%emt 0:00:34]} 14. f4 {[%emt 0:00:32]} Bc5 {[%emt 0:00:58]} 15. Qd2 {[%emt 0:00:20]} Bxe3 {[%emt 0:00:16]} 16. Qxe3 {[%emt 0:00:02]} g5 {[%emt 0:00:26]} 17. f5 {[%emt 0:14:48]} Qb6 {[%emt 0:02:58]} 18. Qh3 {[%emt 0:02:22]} O-O-O {[%emt 0:00:58]} 19. fxe6 {[%emt 0:01:52]} fxe6 {[%emt 0:00:21]} 20. Qxe6 {[%emt 0:09:23]} Rhe8 {[%emt 0:00:25]} 21. Qg4 {[%emt 0:23:17]} Kb8 {[%emt 0:07:23]} 22. e6 {[%emt 0:04:12]} Nf6 {[%emt 0:25:35]} 23. Qf5 {[%emt 0:00:21]} d4 {[%emt 0:05:50]} 24. Na4 {[%emt 0:04:03]} Bxa4 {[%emt 0:00:22]} 25. Qxf6 {[%emt 0:00:07]} Rxe6 {[%emt 0:01:16]} 26. Qf2 {[%emt 0:01:16]} Rf6 {[%emt 0:05:10]} 27. Qe1 {[%emt 0:04:00]} Re8 {[%emt 0:04:27]} 28. Qg3+ {[%emt 0:00:08]} Qc7 {[%emt 0:08:44]} 29. Qxc7+ {[%emt 0:04:34]} Kxc7 {[%emt 0:00:20]} 30. Bc4 {[%emt 0:00:03]} Rf2 {[%emt 0:01:44]} 31. b3 {[%emt 0:01:41]} Bc6 {[%emt 0:00:16]} 32. Rxd4 {[%emt 0:03:54]} Re4 {[%emt 0:06:23]} 33. Rd3 {[%emt 0:13:49]} Rxg2 {[%emt 0:04:22]} 34. h3 {[%emt 0:00:51]} Ree2 {[%emt 0:03:15]} 35. Rc1 {[%emt 0:00:03]} Rd2 {[%emt 0:04:13]} 36. Re3 {[%emt 0:00:57]} Rh2 {[%emt 0:02:23]} 37. Bd3 {[%emt 0:00:50]} Rdf2 {[%emt 0:00:02]} 38. Rce1 {[%emt 0:01:20]} Rf6 {[%emt 0:01:53]} 39. Be2 {[%emt 0:02:00]} Rff2 {[%emt 0:01:38]} 40. Bd3 {[%emt 0:00:58]} Rf6 {[%emt 0:02:17]} 41. Be2 {[%emt 0:03:33]} Kb6 {[%emt 0:11:26]} 42. Kb2 {[%emt 0:02:29]} Rff2 {[%emt 0:00:54]} 43. Bd3 {[%emt 0:01:47]} Bd7 {[%emt 0:03:55]} 44. Re6+ {[%emt 0:14:49]} Bxe6 {[%emt 0:00:15]} 45. Rxe6+ {[%emt 0:00:01]} Ka7 {[%emt 0:01:36]} 46. Rxh6 {[%emt 0:00:25]} g4 {[%emt 0:05:19]} 47. h4 {[%emt 0:00:06]} Rf7 {[%emt 0:03:07]} 48. h5 {[%emt 0:07:43]} Rg7 {[%emt 0:00:19]} 49. Bc4 {[%emt 0:00:06]} g3 {[%emt 0:01:40]} 50. Rg6 {[%emt 0:00:02]} Rxg6 {[%emt 0:00:23]} 51. hxg6 {[%emt 0:00:01]} Rh6 {[%emt 0:00:21]} 52. Bf7 {[%emt 0:01:20]} Rxg6 {[%emt 0:00:40]} 0-1

[Event "Swiss Championship 2024"]
[Site "Flims"]
[Date "2024.07.19"]
[Round "7.2"]
[White "Georgiadis, Ioannis"]
[Black "Wyss, Jonas"]
[Result "1-0"]
[ECO "A16"]
[WhiteElo "2483"]
[BlackElo "2291"]
[Annotator "TA"]
[PlyCount "71"]
[EventDate "2024.07.10"]
[EventType "tourn"]
[EventCountry "SUI"]
[SourceTitle "playchess.com"]
[Source "ChessBase"]
[SourceQuality "1"]
[TimeControl "40/5400+30:1800+30"]

{[%evp 9,71,30,23,26,20,25,41,26,30,4,22,26,23,14,32,29,32,39,100,32,49,0,0,0,0,-20,29,-46,-26,-26,132,115,124,85,183,187,178,152,244,174,369,372,400,382,655,606,612,589,970,970,1493,1446,1651,1735,1916,1782,1918,840,2844,2351,5547,5527,29980,29980]} 1. Nf3 {[%emt 0:00:04]} Nf6 {[%emt 0:00:21][%cal Bg8f6,Bf6d5,Bd5c3][%mdl 32]} 2. c4 {[%emt 0:00:07]} g6 {[%emt 0:00:15]} 3. Nc3 {[%emt 0:00:18]} d5 {[%emt 0:00:24]} 4. cxd5 {[%emt 0:00:09]} Nxd5 {[%emt 0:00:11]} 5. h4 {[%emt 0:00:07][%cal Bh2h4,Bh4h5,Bh5h6][%mdl 32]} Bg7 {[%emt 0:00:50]} 6. e4 {[%emt 0:00:29]} Nxc3 {[%emt 0:00:18]} 7. dxc3 {[%emt 0:00:05]} Qxd1+ {[%emt 0:00:29]} 8. Kxd1 {[%emt 0:00:02] White is slightly better.} Nd7 {[%emt 0:01:44]} 9. h5 {[%emt 0:00:31]} Nf6 {[%emt 0:15:33]} 10. h6 {[%emt 0:18:00]} Bf8 {[%emt 0:00:20]} 11. Bd3 {[%emt 0:04:35]} Bg4 {[%emt 0:26:37]} 12. Kc2 {[%emt 0:02:26]} Bxf3 {[%emt 0:05:49]} 13. gxf3 {[%emt 0:00:16]} e5 {[%emt 0:00:35] Dodges Bf4} ({Black should try} 13... a5 $14) 14. Be3 {[%emt 0:06:27]} ({Better is} 14. f4 $1 $16) 14... Nh5 {[%emt 0:10:16] [#]} 15. Rxh5 {[%emt 0:02:49]} gxh5 $11 {[%emt 0:00:10]} 16. Rh1 {[%emt 0:00:12]} Bd6 {[%emt 0:10:24]} 17. Rxh5 {[%emt 0:00:33]} Ke7 {[%emt 0:14:11]} (17... Rg8 {is more appropriate.}) 18. Rh1 {[%emt 0:01:28]} (18. Bc4 $11) 18... Rhg8 {[%emt 0:01:15]} 19. Bf1 {[%emt 0:00:55] [#]} f5 $2 {[%emt 0:01:47]} 20. exf5 $16 {[%emt 0:00:34] Black is on the road to losing.} Kf6 {[%emt 0:00:20][%cal Oa7a5]} 21. Bd3 {[%emt 0:00:13]} c5 {[%emt 0:00:58]} (21... Rg2 $16) 22. Be4 $18 {[%emt 0:01:32]} Rab8 {[%emt 0:00:36]} 23. Rd1 {[%emt 0:01:59]} Rgd8 {[%emt 0:00:55]} (23... Be7 $16 24. Rh1 (24. Rd7 Rgd8 $16) 24... b6) 24. a4 {[%emt 0:03:07]} Be7 $2 {[%emt 0:05:06]} (24... b6 {is a better defense.} 25. c4 Rbc8) 25. Rg1 {[%emt 0:00:42]} Rg8 {[%emt 0:00:09] Repels Rg7} 26. Rg4 {[%emt 0:00:15]} b6 $2 {[%emt 0:02:09]} (26... Bd6 27. Bd5 Rxg4 28. fxg4 e4 29. Bxe4 Rg8) 27. Bd5 {[%emt 0:00:58]} Rxg4 {[%emt 0:01:38]} 28. fxg4 {[%emt 0:00:06][%cal Bf3g4,Bg4g5,Bg5g6][%mdl 4128] Endgame. KRB-KB} e4 {[%emt 0:00:35]} 29. Bf4 {[%emt 0:01:27]} Bd6 {[%emt 0:00:31]} 30. Bxd6 {[%emt 0:02:15] A strong pair of Bishops.} Rd8 {[%emt 0:00:01] [#]} 31. Bxe4 $1 {[%emt 0:00:22][%cal Of2f4] Black must now prevent f4!} Rxd6 {[%emt 0:00:00]} 32. f4 {[%emt 0:00:08] Strongly threatening g5+.} Rd8 {[%emt 0:01:29]} 33. g5+ {[%emt 0:00:17]} Kf7 {[%emt 0:00:10]} 34. Bd3 {[%emt 0:00:48] And now Bc4+ would win.} Re8 {[%emt 0:00:49]} 35. Bc4+ {[%emt 0:00:18]} Kf8 {[%emt 0:00:31]} 36. g6 {[%emt 0:00:13] Weighted Error Value: White=0.20 (precise) /Black=0.83.  Mistake:       	White=3     	Black=7      Inaccurate:     	White=2     	Black=1      OK:         	White=6     	Black=5      Best:        	White=3     	Black=1} 1-0

[Event "Swiss Championship 2024"]
[Site "Flims"]
[Date "2024.07.19"]
[Round "7.3"]
[White "Klauser, Markus"]
[Black "Stijve, Theo"]
[Result "0-1"]
[ECO "C60"]
[WhiteElo "2358"]
[BlackElo "2328"]
[Annotator "RC"]
[PlyCount "90"]
[EventDate "2024.07.10"]
[EventType "tourn"]
[EventCountry "SUI"]
[SourceTitle "playchess.com"]
[Source "ChessBase"]
[SourceQuality "1"]
[TimeControl "40/5400+30:1800+30"]

1. e4 {[%emt 0:01:04]} e5 {[%emt 0:00:09]} 2. Nf3 {[%emt 0:00:16]} Nc6 {[%emt 0:00:06]} 3. Bb5 {[%emt 0:00:08]} Nge7 {[%emt 0:00:07]} 4. c3 {[%emt 0:00:46]} d5 {[%emt 0:00:07]} 5. Qa4 {[%emt 0:18:30]} a6 {[%emt 0:02:45]} 6. Bxc6+ {[%emt 0:04:50]} Nxc6 {[%emt 0:00:09]} 7. d3 {[%emt 0:08:20]} Qd6 {[%emt 0:10:44]} 8. Nbd2 {[%emt 0:01:40]} Be7 {[%emt 0:11:23]} 9. O-O {[%emt 0:00:38]} Be6 {[%emt 0:00:54]} 10. Re1 {[%emt 0:03:22]} O-O-O {[%emt 0:10:51]} 11. a3 {[%emt 0:03:03]} g5 {[%emt 0:05:22]} 12. d4 {[%emt 0:00:46]} f6 {[%emt 0:13:15]} 13. c4 {[%emt 0:07:03]} g4 {[%emt 0:11:44]} 14. cxd5 {[%emt 0:04:08]} gxf3 {[%emt 0:01:07]} 15. dxc6 {[%emt 0:05:54]} exd4 {[%emt 0:07:36]} 16. cxb7+ {[%emt 0:02:22]} Kxb7 {[%emt 0:00:36]} 17. Nxf3 {[%emt 0:02:39]} Rhg8 {[%emt 0:01:38]} 18. Bd2 {[%emt 0:02:02]} c5 {[%emt 0:02:08]} 19. Nh4 {[%emt 0:14:09]} Qd7 {[%emt 0:04:40]} 20. Qxd7+ {[%emt 0:00:58]} Rxd7 {[%emt 0:00:19]} 21. Nf5 {[%emt 0:04:48]} c4 {[%emt 0:00:36]} 22. Nxe7 {[%emt 0:04:36]} Rxe7 {[%emt 0:00:08]} 23. f3 {[%emt 0:00:34]} Kc6 {[%emt 0:04:02]} 24. Rad1 {[%emt 0:00:36]} Rb7 {[%emt 0:01:37]} 25. Bc1 {[%emt 0:00:28]} Kc5 {[%emt 0:00:18]} 26. Kf2 {[%emt 0:00:19]} h5 {[%emt 0:00:45]} 27. Re2 {[%emt 0:02:21]} h4 {[%emt 0:01:05]} 28. Red2 {[%emt 0:01:45]} d3 {[%emt 0:01:56]} 29. Ke3 {[%emt 0:00:33]} Rbg7 {[%emt 0:05:18]} 30. Rg1 {[%emt 0:02:36]} Rb7 {[%emt 0:02:05]} 31. b4+ {[%emt 0:01:12]} Kb5 {[%emt 0:00:38]} 32. Bb2 {[%emt 0:00:17]} f5 {[%emt 0:00:16]} 33. e5 {[%emt 0:01:16]} Ka4 {[%emt 0:00:40]} 34. Bd4 {[%emt 0:01:45]} Rbg7 {[%emt 0:00:38]} 35. Bc5 {[%emt 0:00:37]} Bd7 {[%emt 0:01:09]} 36. Bd6 {[%emt 0:00:27]} Rg6 {[%emt 0:00:36]} 37. Kf4 {[%emt 0:01:03]} Bb5 {[%emt 0:00:33]} 38. Ke3 {[%emt 0:00:55]} c3 {[%emt 0:00:45]} 39. Rxd3 {[%emt 0:00:33]} Bxd3 {[%emt 0:00:37]} 40. Kxd3 {[%emt 0:00:02]} Rxg2 {[%emt 0:00:24]} 41. Rxg2 {[%emt 0:05:28]} Rxg2 {[%emt 0:00:51]} 42. Kxc3 {[%emt 0:00:02]} Rxh2 {[%emt 0:01:02]} 43. e6 {[%emt 0:00:19]} Re2 {[%emt 0:00:13]} 44. e7 {[%emt 0:00:11]} h3 {[%emt 0:00:12]} 45. Kd4 {[%emt 0:00:20]} Rxe7 {[%emt 0:00:20]} 0-1

[Event "Swiss Championship 2024"]
[Site "Flims"]
[Date "2024.07.19"]
[Round "7.4"]
[White "Georgiadis, Nico"]
[Black "Peng, Li Min"]
[Result "1/2-1/2"]
[ECO "C12"]
[WhiteElo "2512"]
[BlackElo "2562"]
[Annotator "TA"]
[PlyCount "49"]
[EventDate "2024.07.10"]
[EventType "tourn"]
[EventCountry "SUI"]
[SourceTitle "playchess.com"]
[Source "ChessBase"]
[SourceQuality "1"]
[TimeControl "40/5400+30:1800+30"]

{[%evp 10,49,61,68,53,22,32,32,24,31,30,23,18,41,90,82,83,79,84,49,61,65,57,25,24,16,14,12,15,9,16,0,8,6,18,17,33,0,9,0,37,0]} 1. e4 {[%emt 0:00:03]} e6 {[%emt 0:00:05]} 2. d4 {[%emt 0:00:11]} d5 {[%emt 0:00:05]} 3. Nc3 {[%emt 0:00:07]} Nf6 {[%emt 0:00:06]} 4. Bg5 {[%emt 0:00:07]} h6 {[%emt 0:00:05]} 5. Bxf6 {[%emt 0:00:27]} Qxf6 {[%emt 0:00:08]} 6. exd5 {[%emt 0:00:04]} Bb4 {[%emt 0:00:04]} 7. Bc4 {[%emt 0:00:40]} O-O {[%emt 0:01:30][%cal Bh8f8,Bf8d8,Bd8d4][%mdl 32]} 8. Nge2 $1 {[%emt 0:00:30]} exd5 {[%emt 0:00:42]} 9. Bxd5 {[%emt 0:00:04]} Rd8 {[%emt 0:00:12]} 10. O-O {[%emt 0:00:44]} Bxc3 $1 {[%emt 0:01:18]} 11. Nxc3 {[%emt 0:00:03]} c6 {[%emt 0:00:09] [#]} (11... Nc6 $14) 12. Bb3 $1 $16 {[%emt 0:03:36]} Rxd4 {[%emt 0:02:56] [#]} 13. Qe2 {[%emt 0:03:33]} Be6 {[%emt 0:00:04]} 14. Bxe6 {[%emt 0:00:13]} Qxe6 {[%emt 0:00:16]} 15. Qxe6 {[%emt 0:00:25]} fxe6 {[%emt 0:00:05]} 16. Rfe1 {[%emt 0:02:34]} Kf7 {[%emt 0:00:12]} 17. Rad1 {[%emt 0:00:05]} Rxd1 {[%emt 0:00:08]} 18. Rxd1 $11 {[%emt 0:00:05][%mdl 4096] Endgame. KRN-KRN} Ke7 {[%emt 0:00:08] Dodges Rd8} 19. f3 {[%emt 0:00:20]} Nd7 {[%emt 0:00:04]} 20. a4 {[%emt 0:00:46]} Nf6 {[%emt 0:01:43]} 21. Kf2 {[%emt 0:00:12]} Nd5 {[%emt 0:00:05]} 22. Ne4 {[%emt 0:00:04]} Nf6 {[%emt 0:00:07]} 23. Nc3 {[%emt 0:00:18]} Nd5 {[%emt 0:00:04]} 24. Ne4 {[%emt 0:00:04]} Nf6 {[%emt 0:00:04]} 25. Nc3 {[%emt 0:00:05] Weighted Error Value: White=0.10 (very precise) /Black=0.05 (flawless) .  Mistake:       	---       	Black=1      Inaccurate:     	White=4     	---        OK:         	White=2     	Black=8      Best:        	---       	Black=3      Strong:       	White=2     	Black=1} 1/2-1/2

[Event "Swiss Championship 2024"]
[Site "Flims"]
[Date "2024.07.19"]
[Round "7.5"]
[White "Baenziger, Fabian"]
[Black "Fischer, Daniel"]
[Result "1-0"]
[ECO "A20"]
[WhiteElo "2410"]
[BlackElo "2372"]
[Annotator "RC"]
[PlyCount "85"]
[EventDate "2024.07.10"]
[EventType "tourn"]
[EventCountry "SUI"]
[SourceTitle "playchess.com"]
[Source "ChessBase"]
[SourceQuality "1"]
[TimeControl "40/5400+30:1800+30"]

1. c4 {[%emt 0:00:04]} e5 {[%emt 0:00:05]} 2. g3 {[%emt 0:00:14]} c6 {[%emt 0:00:20]} 3. Nf3 {[%emt 0:00:08]} e4 {[%emt 0:00:34]} 4. Nd4 {[%emt 0:00:05]} d5 {[%emt 0:00:19]} 5. cxd5 {[%emt 0:00:12]} Qxd5 {[%emt 0:00:06]} 6. Nc2 {[%emt 0:00:15]} Nf6 {[%emt 0:00:06]} 7. Nc3 {[%emt 0:00:18]} Qe5 {[%emt 0:00:24]} 8. Bg2 {[%emt 0:00:56]} Na6 {[%emt 0:00:34]} 9. O-O {[%emt 0:00:33]} Be7 {[%emt 0:00:11]} 10. Ne3 {[%emt 0:00:50]} O-O {[%emt 0:04:56]} 11. a3 {[%emt 0:00:18]} Rd8 {[%emt 0:01:36]} 12. b4 {[%emt 0:08:04]} Nc7 {[%emt 0:06:40]} 13. Bb2 {[%emt 0:02:17]} Ng4 {[%emt 0:03:49]} 14. Nxg4 {[%emt 0:09:16]} Bxg4 {[%emt 0:00:07]} 15. Bxe4 {[%emt 0:00:03]} Qh5 {[%emt 0:00:48]} 16. Bg2 {[%emt 0:01:50]} a5 {[%emt 0:06:25]} 17. bxa5 {[%emt 0:01:23]} Rxa5 {[%emt 0:00:20]} 18. Qb3 {[%emt 0:07:58]} Nb5 {[%emt 0:11:56]} 19. Ne4 {[%emt 0:18:03]} Bxe2 {[%emt 0:05:28]} 20. Rfe1 {[%emt 0:00:04]} Rd3 {[%emt 0:11:50]} 21. Qc2 {[%emt 0:00:05]} Nd4 {[%emt 0:30:42]} 22. Bxd4 {[%emt 0:02:51]} Rxd4 {[%emt 0:00:06]} 23. Qb2 {[%emt 0:11:23]} Rd7 {[%emt 0:02:09]} 24. d4 {[%emt 0:08:57]} Bg4 {[%emt 0:05:44]} 25. Nc5 {[%emt 0:03:22]} Rxc5 {[%emt 0:01:24]} 26. dxc5 {[%emt 0:00:11]} Qxc5 {[%emt 0:00:18]} 27. Re5 {[%emt 0:04:12]} Qd6 {[%emt 0:00:30]} 28. Rae1 {[%emt 0:00:19]} Be6 {[%emt 0:01:11]} 29. Ra5 {[%emt 0:00:21]} Bf8 {[%emt 0:00:46]} 30. Ra8 {[%emt 0:00:24]} h6 {[%emt 0:01:58]} 31. Bf3 {[%emt 0:02:28]} Qc5 {[%emt 0:01:30]} 32. Re5 {[%emt 0:01:43]} Qd6 {[%emt 0:01:04]} 33. Re3 {[%emt 0:01:09]} Qc5 {[%emt 0:00:59]} 34. h4 {[%emt 0:00:41]} Qd6 {[%emt 0:01:25]} 35. Qb6 {[%emt 0:01:21]} Rc7 {[%emt 0:00:52]} 36. Re1 {[%emt 0:02:02]} Bc8 {[%emt 0:00:27]} 37. Re8 {[%emt 0:03:30]} Qd7 {[%emt 0:00:08]} 38. Qe3 {[%emt 0:00:05]} c5 {[%emt 0:00:57]} 39. Qe5 {[%emt 0:01:31]} c4 {[%emt 0:00:45]} 40. Qxc7 {[%emt 0:03:01]} Qxc7 {[%emt 0:00:04]} 41. Raxc8 {[%emt 0:30:03]} Qd7 {[%emt 0:02:36]} 42. Rxf8+ {[%emt 0:00:00]} Kh7 {[%emt 0:00:04]} 43. Rcd8 {[%emt 0:00:00]} 1-0

[Event "Swiss Championship 2024"]
[Site "Flims"]
[Date "2024.07.20"]
[Round "8.1"]
[White "Bogner, Sebastian"]
[Black "Fischer, Daniel"]
[Result "1-0"]
[ECO "A50"]
[WhiteElo "2547"]
[BlackElo "2372"]
[Annotator "RC"]
[PlyCount "91"]
[EventDate "2024.07.10"]
[EventType "tourn"]
[EventCountry "SUI"]
[SourceTitle "playchess.com"]
[Source "ChessBase"]
[SourceQuality "1"]
[TimeControl "40/5400+30:1800+30"]

1. d4 {[%emt 0:00:04]} Nf6 {[%emt 0:00:06]} 2. c4 {[%emt 0:00:03]} e6 {[%emt 0:00:07]} 3. Bf4 {[%emt 0:00:12]} d5 {[%emt 0:02:16]} 4. cxd5 {[%emt 0:00:18]} Nxd5 {[%emt 0:04:08]} 5. Bg3 {[%emt 0:00:29]} c5 {[%emt 0:01:34]} 6. e4 {[%emt 0:00:14]} Nf6 {[%emt 0:03:11]} 7. Nd2 {[%emt 0:00:13]} cxd4 {[%emt 0:06:33]} 8. e5 {[%emt 0:01:34]} Nd5 {[%emt 0:00:33]} 9. Ngf3 {[%emt 0:00:17]} Nc6 {[%emt 0:01:32]} 10. Bd3 {[%emt 0:00:20]} Be7 {[%emt 0:04:13]} 11. O-O {[%emt 0:02:14]} O-O {[%emt 0:01:36]} 12. Rc1 {[%emt 0:01:08]} Bd7 {[%emt 0:03:57]} 13. a3 {[%emt 0:05:47]} Rc8 {[%emt 0:05:01]} 14. Qe2 {[%emt 0:03:01]} Re8 {[%emt 0:06:11]} 15. h4 {[%emt 0:11:06]} f5 {[%emt 0:10:38]} 16. exf6 {[%emt 0:01:43]} gxf6 {[%emt 0:00:54]} 17. Rfe1 {[%emt 0:04:31]} Bf8 {[%emt 0:02:53]} 18. Nc4 {[%emt 0:05:43]} Nb6 {[%emt 0:04:10]} 19. Qe4 {[%emt 0:08:30]} f5 {[%emt 0:00:29]} 20. Qe2 {[%emt 0:00:07]} Nxc4 {[%emt 0:01:35]} 21. Bxc4 {[%emt 0:01:18]} Bg7 {[%emt 0:02:46]} 22. b4 {[%emt 0:07:34]} a6 {[%emt 0:02:27]} 23. Bf4 {[%emt 0:04:04]} b5 {[%emt 0:08:22]} 24. Bb3 {[%emt 0:02:47]} Qf6 {[%emt 0:00:59]} 25. Rc5 {[%emt 0:04:54]} h6 {[%emt 0:04:27]} 26. Be5 {[%emt 0:05:05]} Qg6 {[%emt 0:02:55]} 27. Bxg7 {[%emt 0:00:54]} Kxg7 {[%emt 0:00:26]} 28. Qd2 {[%emt 0:05:57]} Qf6 {[%emt 0:04:13]} 29. Qf4 {[%emt 0:02:08]} Kh7 {[%emt 0:03:22]} 30. Ne5 {[%emt 0:05:36]} Nxe5 {[%emt 0:00:57]} 31. Rcxe5 {[%emt 0:00:09]} Re7 {[%emt 0:04:21]} 32. Qxd4 {[%emt 0:00:19]} Rg8 {[%emt 0:06:00]} 33. R1e3 {[%emt 0:09:04]} Rg4 {[%emt 0:01:35]} 34. Qd6 {[%emt 0:02:05]} Qxh4 {[%emt 0:01:22]} 35. Bxe6 {[%emt 0:02:14]} Bxe6 {[%emt 0:00:10]} 36. Rxe6 {[%emt 0:00:06]} Rxe6 {[%emt 0:00:59]} 37. Rxe6 {[%emt 0:01:27]} Rg7 {[%emt 0:00:50]} 38. Qe5 {[%emt 0:02:36]} Qg4 {[%emt 0:00:40]} 39. g3 {[%emt 0:02:14]} f4 {[%emt 0:00:46]} 40. Qe4+ {[%emt 0:00:56]} Rg6 {[%emt 0:00:02]} 41. Re7+ {[%emt 0:31:18]} Kh8 {[%emt 0:30:42]} 42. Qd4+ {[%emt 0:00:00]} Rg7 {[%emt 0:00:00]} 43. Re4 {[%emt 0:00:00]} Kh7 {[%emt 0:00:00]} 44. Rxf4 {[%emt 0:00:00]} Qe6 {[%emt 0:00:00]} 45. Rf6 {[%emt 0:00:00]} Qe2 {[%emt 0:00:00]} 46. Qd5 {[%emt 0:00:00]} 1-0